Body Name,Date,Transaction Number,Invoice Number,Net Amount,VAT,Supplier Name,Supplier ID,Expense Area,Expense Type,Expense Code
Redditch Borough Council,16/04/2019,317491,CD970738341,"1,033.84 ",151.97 ,Agrovista (Sherriff) Uk Ltd,5562,Grounds Maint - Parks,Materials,4170
Redditch Borough Council,24/04/2019,318987,1711954,0.00 ,670.98 ,Akw Medicare Ltd,1858,Crossgate Stocks,Stock Account (Cedar),1201
Redditch Borough Council,24/04/2019,317087,00307706,"8,250.00 ","1,650.00 ",Anthony Collins Solicitors Llp,1439,Corporate Staff Costs,Training,3043
Redditch Borough Council,24/04/2019,319277,18020,537.00 ,0.00 ,Appletree Guest House,81,Bed And Breakfast Accom.,Rents & Service Charge,3350
Redditch Borough Council,24/04/2019,319278,18019,895.00 ,0.00 ,Appletree Guest House,81,Bed And Breakfast Accom.,Rents & Service Charge,3350
Redditch Borough Council,24/04/2019,319283,18013,"3,415.50 ",0.00 ,Appletree Guest House,81,Hsg Options,Rents & Service Charge,3350
Redditch Borough Council,10/04/2019,318161,2609,"1,171.00 ",234.20 ,Apt Security Systems Ltd,762,Crossgates Depot,Building Maintenance,3100
Redditch Borough Council,10/04/2019,318161,2609,"1,171.50 ",234.30 ,Apt Security Systems Ltd,762,Town Hall,Building Maintenance,3100
Redditch Borough Council,16/04/2019,318227,28900,655.00 ,131.00 ,Arboricultural Association,5783,Corporate Staff Costs,Training,3043
Redditch Borough Council,24/04/2019,317753,SW00220074,"2,662.00 ",532.40 ,Arden Construction Ltd,2033,Hra Responsive Repairs,Building Maintenance,3100
Redditch Borough Council,24/04/2019,317759,SW00220068,"2,159.00 ",431.80 ,Arden Construction Ltd,2033,Hra Responsive Repairs,Building Maintenance,3100
Redditch Borough Council,24/04/2019,317760,SW00220065,"2,570.25 ",514.05 ,Arden Construction Ltd,2033,Hra Responsive Repairs,Building Maintenance,3100
Redditch Borough Council,24/04/2019,317761,SW00220066,"1,804.90 ",360.98 ,Arden Construction Ltd,2033,Hra Responsive Repairs,Building Maintenance,3100
Redditch Borough Council,24/04/2019,317762,SW00220067,"2,456.00 ",491.20 ,Arden Construction Ltd,2033,Hra Responsive Repairs,Building Maintenance,3100
Redditch Borough Council,24/04/2019,317763,SW00220069,"2,526.00 ",505.20 ,Arden Construction Ltd,2033,Hra Responsive Repairs,Building Maintenance,3100
Redditch Borough Council,24/04/2019,317764,SW00220070,"2,983.00 ",596.60 ,Arden Construction Ltd,2033,Hra Responsive Repairs,Building Maintenance,3100
Redditch Borough Council,24/04/2019,317765,SW00220071,"2,362.17 ",472.43 ,Arden Construction Ltd,2033,Hra Responsive Repairs,Building Maintenance,3100
Redditch Borough Council,24/04/2019,317766,SW00220072,"2,880.00 ",576.00 ,Arden Construction Ltd,2033,Hra Responsive Repairs,Building Maintenance,3100
Redditch Borough Council,24/04/2019,317767,SW00220073,"1,474.00 ",294.80 ,Arden Construction Ltd,2033,Hra Responsive Repairs,Building Maintenance,3100
Redditch Borough Council,24/04/2019,317768,SW00220075,"2,267.00 ",453.40 ,Arden Construction Ltd,2033,Hra Responsive Repairs,Building Maintenance,3100
Redditch Borough Council,24/04/2019,318541,SW00220135,551.38 ,110.28 ,Arden Construction Ltd,2033,Hra Responsive Repairs,Building Maintenance,3100
Redditch Borough Council,24/04/2019,318632,SW00220114,"2,599.86 ",519.97 ,Arden Construction Ltd,2033,Hra Responsive Repairs,Building Maintenance,3100
Redditch Borough Council,16/04/2019,314143,ASP/17/029,"14,500.00 ","2,900.00 ",Asprey Management Solutions,103198,Rbc Balance Sheet,Contract Payments,8131
Redditch Borough Council,10/04/2019,318485,A9980141319,253.47 ,50.69 ,Ats Euromaster Ltd,3306,Concessionary Travel,R&M Of Vehicles,3700
Redditch Borough Council,10/04/2019,318485,A9980141319,60.70 ,12.16 ,Ats Euromaster Ltd,3306,Household Waste Collection,R&M Of Vehicles,3700
Redditch Borough Council,10/04/2019,318485,A9980141319,10.02 ,2.00 ,Ats Euromaster Ltd,3306,Hra Equipment & Adaptations,R&M Of Vehicles,3700
Redditch Borough Council,10/04/2019,318485,A9980141319,10.02 ,2.00 ,Ats Euromaster Ltd,3306,Hra Voids Repairs,R&M Of Vehicles,3700
Redditch Borough Council,10/04/2019,318485,A9980141319,80.40 ,16.08 ,Ats Euromaster Ltd,3306,Redditch Place Teams General,R&M Of Vehicles,3700
Redditch Borough Council,10/04/2019,318485,A9980141319,516.13 ,103.23 ,Ats Euromaster Ltd,3306,Strategic Routes & Tractors,R&M Of Vehicles,3700
Redditch Borough Council,10/04/2019,316169,BH53956,"10,779.28 ","2,155.86 ",Baily Garner Llp,102739,Rbc Balance Sheet,Building - Purchase,8102
Redditch Borough Council,10/04/2019,316170,BH53961,"21,558.55 ","4,311.71 ",Baily Garner Llp,102739,Rbc Balance Sheet,Building - Purchase,8102
Redditch Borough Council,16/04/2019,314517,3130909,561.97 ,112.40 ,Banner Group Ltd,65222,Hra Voids Repairs,Furniture & Equipment Purchase,4000
Redditch Borough Council,16/04/2019,316448,3303922,"1,588.09 ",314.97 ,Banner Group Ltd,65222,Woodrow Neighbourhood Office,Furniture & Equipment Purchase,4000
Redditch Borough Council,03/04/2019,317675,511776,747.65 ,149.53 ,Bell Plumbing Supplies,6981,Rbc Balance Sheet,Contract Payments,8131
Redditch Borough Council,03/04/2019,317677,511778,937.88 ,187.58 ,Bell Plumbing Supplies,6981,Rbc Balance Sheet,Contract Payments,8131
Redditch Borough Council,03/04/2019,317679,511777,765.09 ,153.02 ,Bell Plumbing Supplies,6981,Rbc Balance Sheet,Contract Payments,8131
Redditch Borough Council,03/04/2019,317682,511779,752.60 ,150.52 ,Bell Plumbing Supplies,6981,Rbc Balance Sheet,Contract Payments,8131
Redditch Borough Council,03/04/2019,317683,511783,773.36 ,154.67 ,Bell Plumbing Supplies,6981,Rbc Balance Sheet,Contract Payments,8131
Redditch Borough Council,03/04/2019,317684,511781,"1,016.09 ",203.22 ,Bell Plumbing Supplies,6981,Rbc Balance Sheet,Contract Payments,8131
Redditch Borough Council,03/04/2019,317686,511780,745.98 ,149.20 ,Bell Plumbing Supplies,6981,Rbc Balance Sheet,Contract Payments,8131
Redditch Borough Council,03/04/2019,317689,511786,774.25 ,154.85 ,Bell Plumbing Supplies,6981,Rbc Balance Sheet,Dlo,8130
Redditch Borough Council,03/04/2019,317690,511785,528.00 ,105.60 ,Bell Plumbing Supplies,6981,Planned,Materials,4170
Redditch Borough Council,03/04/2019,318264,513080,740.75 ,148.15 ,Bell Plumbing Supplies,6981,Rbc Balance Sheet,Contract Payments,8131
Redditch Borough Council,03/04/2019,318265,513082,886.70 ,177.34 ,Bell Plumbing Supplies,6981,Rbc Balance Sheet,Contract Payments,8131
Redditch Borough Council,03/04/2019,318267,513081,774.52 ,154.90 ,Bell Plumbing Supplies,6981,Rbc Balance Sheet,Contract Payments,8131
Redditch Borough Council,03/04/2019,318268,513079,758.98 ,151.80 ,Bell Plumbing Supplies,6981,Rbc Balance Sheet,Contract Payments,8131
Redditch Borough Council,10/04/2019,318327,513791,740.75 ,148.15 ,Bell Plumbing Supplies,6981,Rbc Balance Sheet,Contract Payments,8131
Redditch Borough Council,16/04/2019,318777,515180,755.17 ,151.03 ,Bell Plumbing Supplies,6981,Rbc Balance Sheet,Contract Payments,8131
Redditch Borough Council,16/04/2019,318780,515176,867.44 ,173.49 ,Bell Plumbing Supplies,6981,Rbc Balance Sheet,Contract Payments,8131
Redditch Borough Council,16/04/2019,318781,515172,747.65 ,149.53 ,Bell Plumbing Supplies,6981,Rbc Balance Sheet,Contract Payments,8131
Redditch Borough Council,16/04/2019,318782,515173,761.94 ,152.39 ,Bell Plumbing Supplies,6981,Rbc Balance Sheet,Contract Payments,8131
Redditch Borough Council,16/04/2019,318783,515171,811.86 ,162.37 ,Bell Plumbing Supplies,6981,Rbc Balance Sheet,Contract Payments,8131
Redditch Borough Council,16/04/2019,318784,515170,794.99 ,159.00 ,Bell Plumbing Supplies,6981,Rbc Balance Sheet,Contract Payments,8131
Redditch Borough Council,16/04/2019,318785,515174,805.77 ,161.15 ,Bell Plumbing Supplies,6981,Rbc Balance Sheet,Contract Payments,8131
Redditch Borough Council,16/04/2019,318786,515175,927.38 ,185.48 ,Bell Plumbing Supplies,6981,Rbc Balance Sheet,Contract Payments,8131
Redditch Borough Council,16/04/2019,318788,515179,742.56 ,148.51 ,Bell Plumbing Supplies,6981,Rbc Balance Sheet,Contract Payments,8131
Redditch Borough Council,24/04/2019,319190,516782,"1,108.39 ",221.68 ,Bell Plumbing Supplies,6981,Rbc Balance Sheet,Contract Payments,8131
Redditch Borough Council,24/04/2019,319192,516780,793.06 ,158.61 ,Bell Plumbing Supplies,6981,Rbc Balance Sheet,Contract Payments,8131
Redditch Borough Council,24/04/2019,319195,516778,902.74 ,180.55 ,Bell Plumbing Supplies,6981,Rbc Balance Sheet,Contract Payments,8131
Redditch Borough Council,24/04/2019,318146,427809,556.00 ,111.20 ,Bennetts Foods,66179,Theatre Management,Catering Provisions,4200
Redditch Borough Council,26/04/2019,319630,2456980 246759,"9,944.30 ",0.00 ,Berrymans Lace Mawer,2340,Rbc Balance Sheet,Insurance Provision,2211
Redditch Borough Council,03/04/2019,317495,85679439,539.70 ,104.95 ,Bidfood Foodservice,4449,Theatre Management,Catering Provisions,4200
Redditch Borough Council,03/04/2019,317989,85907849,787.28 ,130.47 ,Bidfood Foodservice,4449,Indoor Sports & Rec Facilities,Furniture & Equipment Purchase,4000
Redditch Borough Council,24/04/2019,319364,2ND INST 18/19,"2,211.36 ",0.00 ,Birmingham Disability Resource Centre,102906,Grants To Vol Sector,Grants & Subscriptions,4650
Redditch Borough Council,24/04/2019,319352,APR 19 DEDS,641.43 ,0.00 ,Birmingham Hospital Saturday Fund,1508,Rbc Balance Sheet,Payroll Deductions,1488
Redditch Borough Council,03/04/2019,317363,2680,543.60 ,108.72 ,Boundary Services Ltd,63982,Rbc Balance Sheet,Contract Payments,8131
Redditch Borough Council,16/04/2019,318843,B886,0.00 ,100.35 ,Brisol Limited,7217,Crossgate Stocks,Stock Account (Cedar),1201
Redditch Borough Council,10/04/2019,318247,205296,140.25 ,28.05 ,Bristow  & Sutor,157,Council Tax,Other Fees,4360
Redditch Borough Council,10/04/2019,318247,205296,"1,220.82 ",0.00 ,Bristow  & Sutor,157,Vat Control Account,Vat Input Tax Adjustments,2994
Redditch Borough Council,24/04/2019,319221,205864,"1,207.77 ",0.00 ,Bristow  & Sutor,157,Vat Control Account,Vat Input Tax Adjustments,2994
Redditch Borough Council,16/04/2019,318059,VP63913270Q0540,"5,215.76 ","1,043.15 ",British Telecommunications Plc,153,Central Switchboard,Telephones,4450
Redditch Borough Council,16/04/2019,318942,Q0055E,"1,890.76 ",364.15 ,British Telecommunications Plc,153,Central Switchboard,Ict,4500
Redditch Borough Council,16/04/2019,318943,Q006HC,"1,467.52 ",279.50 ,British Telecommunications Plc,153,Central Switchboard,Ict,4500
Redditch Borough Council,16/04/2019,318944,Q0053K,"1,467.52 ",279.50 ,British Telecommunications Plc,153,Central Switchboard,Ict,4500
Redditch Borough Council,03/04/2019,318255,801075071,63.00 ,12.60 ,Bromsgrove District Council,1114,Pest Control,Other Fees,4360
Redditch Borough Council,03/04/2019,318255,801075071,"1,295.00 ",259.00 ,Bromsgrove District Council,1114,Public Health,Other Fees,4360
Redditch Borough Council,10/04/2019,316467,801054473,650.00 ,0.00 ,Bromsgrove District Council,1114,Community Development,Refuse Collection/Waste Dispos,3602
Redditch Borough Council,16/04/2019,318529,801075985,"18,987.00 ","3,797.40 ",Bromsgrove District Council,1114,Building Control,B'Grove Shared Services Cost,5012
Redditch Borough Council,03/04/2019,318320,IN-000009933,"1,167.50 ",227.50 ,Browne Jacobson Llp,67304,Head Of Leisure & Cultural Ser,Professional Fees,4350
Redditch Borough Council,16/04/2019,317663,0088730,"8,246.25 ","1,649.25 ",Building Design Partnership Limited,105008,Planning Policy,Other Fees,4360
Redditch Borough Council,03/04/2019,317250,M19-3168-3169,"1,440.00 ",288.00 ,C L B Surveys,104957,Rbc Balance Sheet,Building - Purchase,8102
Redditch Borough Council,16/04/2019,318842,3807,"3,550.00 ",710.00 ,Candor Care Ltd,5642,Rbc Balance Sheet,Contract Payments,8131
Redditch Borough Council,03/04/2019,318139,PSINV0100171583,0.00 ,107.64 ,Carver Wolverhampton Limited.,117,Crossgate Stocks,Stock Account (Cedar),1201
Redditch Borough Council,03/04/2019,317988,RED/249877,0.00 ,119.84 ,Cef - City Electrical Factors Ltd,113,Crossgate Stocks,Stock Account (Cedar),1201
Redditch Borough Council,03/04/2019,316617,023621,"1,401.06 ",280.21 ,Cfh Docmail Ltd,65783,Central Post,Postage,4400
Redditch Borough Council,10/04/2019,315614,022533,622.60 ,124.52 ,Cfh Docmail Ltd,65783,Housing Locality Service,Postage,4400
Redditch Borough Council,10/04/2019,316630,023840,510.22 ,102.04 ,Cfh Docmail Ltd,65783,Housing Locality Service,Postage,4400
Redditch Borough Council,10/04/2019,318347,024781,"1,287.00 ",257.40 ,Cfh Docmail Ltd,65783,Central Post,Postage,4400
Redditch Borough Council,10/04/2019,318463,024863,"2,103.42 ",420.68 ,Cfh Docmail Ltd,65783,Central Post,Postage,4400
Redditch Borough Council,16/04/2019,318977,025331,"1,006.36 ",201.27 ,Cfh Docmail Ltd,65783,Lifeline - Support,Photocopying  & Print,4300
Redditch Borough Council,24/04/2019,315615,022528,"4,057.01 ",811.40 ,Cfh Docmail Ltd,65783,Central Post,Postage,4400
Redditch Borough Council,24/04/2019,319248,3141785,"2,015.00 ",403.00 ,Cipfa,731,Revenues,Grants & Subscriptions,4650
Redditch Borough Council,24/04/2019,319248,3141785,"2,015.00 ",403.00 ,Cipfa,731,Welfare Support,Grants & Subscriptions,4650
Redditch Borough Council,24/04/2019,319403,2194ABE331,"2,257.54 ",451.50 ,City Plumbing Supplies Ltd (Pts),395,Planned,Materials,4170
Redditch Borough Council,24/04/2019,319408,2194ABE275,878.84 ,175.77 ,City Plumbing Supplies Ltd (Pts),395,Planned,Materials,4170
Redditch Borough Council,03/04/2019,318222,C/RB177580,"2,000.00 ",400.00 ,Civica Uk Limited,1233,Single System,Ict,4500
Redditch Borough Council,24/04/2019,318970,C/RB178410,800.00 ,160.00 ,Civica Uk Limited,1233,Single System,Ict,4500
Redditch Borough Council,24/04/2019,319163,C/BN177655,724.08 ,144.82 ,Civica Uk Limited,1233,Welfare Support,Agency Staff,3020
Redditch Borough Council,03/04/2019,317643,AP81144-001,"3,350.00 ",670.00 ,Clc Contractors Ltd,61737,Hra S/Charge Eligible Works,Building Maintenance,3100
Redditch Borough Council,03/04/2019,317650,AP81157-001,659.74 ,131.95 ,Clc Contractors Ltd,61737,Rbc Balance Sheet,Contract Payments,8131
Redditch Borough Council,03/04/2019,317652,AP81162-001,"1,168.29 ",233.66 ,Clc Contractors Ltd,61737,Hra Responsive Repairs,Building Maintenance,3100
Redditch Borough Council,03/04/2019,317692,AP81178-001,931.51 ,186.30 ,Clc Contractors Ltd,61737,Hra Voids Repairs,Building Maintenance,3100
Redditch Borough Council,10/04/2019,317796,AP81256-001,"5,069.18 ","1,013.84 ",Clc Contractors Ltd,61737,Rbc Balance Sheet,Contract Payments,8131
Redditch Borough Council,10/04/2019,318534,AP81178-003,931.51 ,186.30 ,Clc Contractors Ltd,61737,Hra Voids Repairs,Building Maintenance,3100
Redditch Borough Council,10/04/2019,317427,L204817,"1,282.77 ",256.55 ,Clearaway Limited,6594,Grounds Maint - Cemeteries,Materials,4170
Redditch Borough Council,16/04/2019,318472,SIN203360,"1,782.22 ",356.44 ,Clearwater Technology Ltd,6699,Hra S/Charge Eligible Works,Building Maintenance,3100
Redditch Borough Council,24/04/2019,319002,OP/1154754,"3,385.00 ",677.00 ,Closomat Ltd,1110,Rbc Balance Sheet,Contract Payments,8131
Redditch Borough Council,16/04/2019,318225,72366,16.00 ,3.20 ,Cms Supatrak Ltd,63798,Land Drainage,Furniture & Equipment Rental,4001
Redditch Borough Council,16/04/2019,318225,72366,"2,000.00 ",400.00 ,Cms Supatrak Ltd,63798,Redditch Place Teams General,Furniture & Equipment Rental,4001
Redditch Borough Council,10/04/2019,318319,INV-0061,"3,480.00 ",696.00 ,Commercially Public Ltd,102025,Property Services,Other Fees,4360
Redditch Borough Council,24/04/2019,319315,26638,590.00 ,118.00 ,Complete Environmental Services,62277,Hra Responsive Repairs,Building Maintenance,3100
Redditch Borough Council,03/04/2019,316996,3020810,0.00 ,"2,340.00 ",Craemer Uk Limited,5471,Crossgate Stocks,Stock Account (Cedar),1201
Redditch Borough Council,10/04/2019,318458,20180802,"2,400.00 ",0.00 ,Crays Handy Services,64664,Community Development,Grounds Maintenance,3200
Redditch Borough Council,24/04/2019,318053,2703,"1,060.00 ",212.00 ,Croft Carpets And Flooring Ltd,105441,St Davids House,Furniture & Equipment Purchase,4000
Redditch Borough Council,24/04/2019,318055,2705,"8,305.00 ","1,661.00 ",Croft Carpets And Flooring Ltd,105441,St Davids House,Furniture & Equipment Purchase,4000
Redditch Borough Council,16/04/2019,319028,068-PD001317391,"2,537.00 ",0.00 ,Cumbernauld Rms (Accounts/Payments),1488,Corporate Staff Costs,Apprentice Levy,3048
Redditch Borough Council,16/04/2019,319028,068-PD001317391,"187,345.81 ",0.00 ,Cumbernauld Rms (Accounts/Payments),1488,Rbc Balance Sheet,Payroll Deductions,1488
Redditch Borough Council,16/04/2019,319029,068-PD001317391,"1,114.31 ",0.00 ,Cumbernauld Rms (Accounts/Payments),1488,Rbc Balance Sheet,Sub Contractors Paid Over,2012
Redditch Borough Council,24/04/2019,319327,2018/19 RBCQ4,"194,062.55 ",0.00 ,Dclg,7434,Rbc Balance Sheet,Useable Capital Receipts Hra,2407
Redditch Borough Council,16/04/2019,317559,160183,"28,000.00 ","5,600.00 ",Dgmi  Ltd,104649,Planning Policy,Other Fees,4360
Redditch Borough Council,03/04/2019,317983,126,"2,638.50 ",0.00 ,Redacted- Personal Data Protection,5065,Crematoria,Professional Fees,4350
Redditch Borough Council,03/04/2019,317756,6758,"3,704.22 ",740.84 ,E T M (Agencies)  Ltd,1207,Theatre Management,Professional Fees,4350
Redditch Borough Council,24/04/2019,319205,2019/1675820,"1,028.51 ",205.70 ,Eca,193,Hra Responsive Repairs,Other Fees,4360
Redditch Borough Council,24/04/2019,318959,RED/339592,0.00 ,119.90 ,Edwards Buildbase,188,Crossgate Stocks,Stock Account (Cedar),1201
Redditch Borough Council,24/04/2019,318959,RED/339592,0.06 ,0.02 ,Edwards Buildbase,188,Crossgate Stocks,Stock Variance,1203
Redditch Borough Council,16/04/2019,317433,4134,"2,112.80 ",422.56 ,Electrical Mechanical Solutions Ltd,105126,Indoor Sports & Rec Facilities,Building Maintenance,3100
Redditch Borough Council,16/04/2019,318288,OLD3136637,"1,501.29 ",300.26 ,Enterprise Rent A Car Uk Limited Trading As,66713,Concessionary Travel,Vehicle Hire,3800
Redditch Borough Council,24/04/2019,318844,0000312997,"1,197.46 ",239.49 ,Envirovent Ltd,45,Hra Responsive Repairs,Building Maintenance,3100
Redditch Borough Council,10/04/2019,318482,323421043,0.00 ,289.70 ,Eurocell Building Plastics Ltd,24,Crossgate Stocks,Stock Account (Cedar),1201
Redditch Borough Council,16/04/2019,318215,323398274,0.00 ,132.32 ,Eurocell Building Plastics Ltd,24,Crossgate Stocks,Stock Account (Cedar),1201
Redditch Borough Council,24/04/2019,317574,323365767,0.00 ,365.35 ,Eurocell Building Plastics Ltd,24,Crossgate Stocks,Stock Account (Cedar),1201
Redditch Borough Council,24/04/2019,317574,323365767,-0.01 ,0.00 ,Eurocell Building Plastics Ltd,24,Crossgate Stocks,Stock Variance,1203
Redditch Borough Council,11/04/2019,318915,Redacted- Personal Protection Data,"1,246.00 ",0.00 ,Express Holiday Inn,42651,Bed And Breakfast Accom.,Rents & Service Charge,3350
Redditch Borough Council,11/04/2019,318916,Redacted- Personal Protection Data,693.00 ,0.00 ,Express Holiday Inn,42651,Bed And Breakfast Accom.,Rents & Service Charge,3350
Redditch Borough Council,11/04/2019,318917,Redacted- Personal Protection Data,"1,118.00 ",0.00 ,Express Holiday Inn,42651,Bed And Breakfast Accom.,Rents & Service Charge,3350
Redditch Borough Council,10/04/2019,318622,00003712,790.00 ,158.00 ,Focus Road Markings Ltd,102348,Rbc Balance Sheet,Contract Payments,8131
Redditch Borough Council,24/04/2019,319316,51,"1,755.00 ",0.00 ,Future Youth Impact Ltd,7432,Bromsgrove Csp,Other Fees,4360
Redditch Borough Council,16/04/2019,318800,1911023439,0.00 ,103.20 ,Geocel Limited,794,Crossgate Stocks,Stock Account (Cedar),1201
Redditch Borough Council,24/04/2019,319197,1911025029,0.00 ,254.40 ,Geocel Limited,794,Crossgate Stocks,Stock Account (Cedar),1201
Redditch Borough Council,24/04/2019,318947,3417/01167984,0.00 ,117.15 ,Gibbs & Dandy Timber,5603,Crossgate Stocks,Stock Account (Cedar),1201
Redditch Borough Council,10/04/2019,318565,8924649,"11,157.00 ","2,231.40 ",Grant Thornton Uk Llp,5364,Corporate Expenses,Professional Fees,4350
Redditch Borough Council,10/04/2019,318530,IN26031915,600.00 ,120.00 ,Greenway Energy Limited,61041,Hra Voids Repairs,Building Maintenance,3100
Redditch Borough Council,16/04/2019,318244,213223,0.00 ,61.74 ,Hacketts Pipeline,2105,Crossgate Stocks,Stock Account (Cedar),1201
Redditch Borough Council,16/04/2019,318244,213223,517.62 ,103.52 ,Hacketts Pipeline,2105,Crossgate Stocks,Stock Variance,1203
Redditch Borough Council,24/04/2019,319261,110944297,0.00 ,"4,669.31 ",Hall Fuels,6959,Crossgate Stocks,Stock Account (Cedar),1201
Redditch Borough Council,24/04/2019,314168,26879,"10,900.00 ","2,180.00 ",Hardyman & Co Limited,2949,Rbc Balance Sheet,Contract Payments,8131
Redditch Borough Council,24/04/2019,314169,26878,"10,616.25 ","2,123.25 ",Hardyman & Co Limited,2949,Rbc Balance Sheet,Contract Payments,8131
Redditch Borough Council,11/04/2019,318920,PURCHASE OF,"125,000.00 ",0.00 ,Hcb Solicitors,6857,Rbc Balance Sheet,Useable Capital Receipts Hra,2407
Redditch Borough Council,11/04/2019,318923,PURCHASE OF,"120,000.00 ",0.00 ,Hcb Solicitors,6857,Rbc Balance Sheet,Useable Capital Receipts Hra,2407
Redditch Borough Council,16/04/2019,317076,NOPCT001,"8,000.00 ",0.00 ,Head Gym,36053,Community Development,Professional Fees,4350
Redditch Borough Council,24/04/2019,319271,53911,0.00 ,151.70 ,Hilltop Supplies Ltd,628,Crossgate Stocks,Stock Account (Cedar),1201
Redditch Borough Council,24/04/2019,319273,53914,0.00 ,177.30 ,Hilltop Supplies Ltd,628,Crossgate Stocks,Stock Account (Cedar),1201
Redditch Borough Council,24/04/2019,319274,53915,0.00 ,152.08 ,Hilltop Supplies Ltd,628,Crossgate Stocks,Stock Account (Cedar),1201
Redditch Borough Council,24/04/2019,319274,53915,-2.00 ,-0.40 ,Hilltop Supplies Ltd,628,Crossgate Stocks,Stock Variance,1203
Redditch Borough Council,24/04/2019,319275,53916,0.00 ,146.88 ,Hilltop Supplies Ltd,628,Crossgate Stocks,Stock Account (Cedar),1201
Redditch Borough Council,10/04/2019,318177,F7931,"2,587.50 ",517.50 ,Hodges And Lawrence Ltd,5416,Bromsgrove Csp,Other Fees,4360
Redditch Borough Council,10/04/2019,318177,F7931,"2,587.50 ",517.50 ,Hodges And Lawrence Ltd,5416,Safer & Stronger Communities,Other Fees,4360
Redditch Borough Council,24/04/2019,318241,18944,"9,225.00 ","1,845.00 ",Housing Partners,5974,Homelessness Administration,Ict,4500
Redditch Borough Council,24/04/2019,316488,3406,"2,654.00 ",530.80 ,Informed Assessment Limited,5627,Corporate Staff Costs,Training,3043
Redditch Borough Council,03/04/2019,318183,A126443,600.00 ,120.00 ,Irrv,965,Revenues,Grants & Subscriptions,4650
Redditch Borough Council,03/04/2019,318183,A126443,600.00 ,120.00 ,Irrv,965,Welfare Support,Grants & Subscriptions,4650
Redditch Borough Council,11/04/2019,318922,PURCHASE OF,"161,000.00 ",0.00 ,J S Law Solicitors,104839,Rbc Balance Sheet,Building - Purchase,8102
Redditch Borough Council,26/04/2019,319629,PURCHASE OF,"162,000.00 ",0.00 ,J S Law Solicitors,104839,Rbc Balance Sheet,Building - Purchase,8102
Redditch Borough Council,03/04/2019,317400,PI003872,0.00 ,105.02 ,Jack Hobbs Plumbing & Heating Suppl,306,Crossgate Stocks,Stock Account (Cedar),1201
Redditch Borough Council,03/04/2019,318329,PI006874,0.00 ,130.00 ,Jack Hobbs Plumbing & Heating Suppl,306,Crossgate Stocks,Stock Account (Cedar),1201
Redditch Borough Council,03/04/2019,318335,PI007650,0.00 ,151.86 ,Jack Hobbs Plumbing & Heating Suppl,306,Crossgate Stocks,Stock Account (Cedar),1201
Redditch Borough Council,03/04/2019,318336,PI007651,0.00 ,116.68 ,Jack Hobbs Plumbing & Heating Suppl,306,Crossgate Stocks,Stock Account (Cedar),1201
Redditch Borough Council,16/04/2019,318827,PI008505,0.00 ,190.00 ,Jack Hobbs Plumbing & Heating Suppl,306,Crossgate Stocks,Stock Account (Cedar),1201
Redditch Borough Council,24/04/2019,319321,PI010681,0.00 ,190.00 ,Jack Hobbs Plumbing & Heating Suppl,306,Crossgate Stocks,Stock Account (Cedar),1201
Redditch Borough Council,24/04/2019,319322,PI010435,0.00 ,172.00 ,Jack Hobbs Plumbing & Heating Suppl,306,Crossgate Stocks,Stock Account (Cedar),1201
Redditch Borough Council,16/04/2019,317300,16322,650.00 ,0.00 ,Redacted- Personal Data Protection,105340,Community Development,Professional Fees,4350
Redditch Borough Council,03/04/2019,318238,5025,"4,575.91 ",915.18 ,Kelbec Civils Ltd,4794,Hra Responsive Repairs,Grounds Maintenance,3200
Redditch Borough Council,10/04/2019,318559,5028,336.20 ,67.24 ,Kelbec Civils Ltd,4794,Community Centres,Building Maintenance,3100
Redditch Borough Council,10/04/2019,318559,5028,264.65 ,52.93 ,Kelbec Civils Ltd,4794,Community Parks & Open Spaces,Building Maintenance,3100
Redditch Borough Council,10/04/2019,318559,5028,184.50 ,36.90 ,Kelbec Civils Ltd,4794,Crossgates Depot,Building Maintenance,3100
Redditch Borough Council,10/04/2019,318559,5028,184.50 ,36.90 ,Kelbec Civils Ltd,4794,Indoor Sports & Rec Facilities,Building Maintenance,3100
Redditch Borough Council,10/04/2019,318559,5028,184.50 ,36.90 ,Kelbec Civils Ltd,4794,Misc Properties,Building Maintenance,3100
Redditch Borough Council,10/04/2019,318559,5028,"1,711.70 ",342.34 ,Kelbec Civils Ltd,4794,Museums And Gallaries,Building Maintenance,3100
Redditch Borough Council,10/04/2019,318559,5028,184.50 ,36.90 ,Kelbec Civils Ltd,4794,Theatre Management,Building Maintenance,3100
Redditch Borough Council,10/04/2019,318559,5028,184.50 ,36.90 ,Kelbec Civils Ltd,4794,Town Hall,Building Maintenance,3100
Redditch Borough Council,03/04/2019,317712,1819/640,"2,505.00 ",501.00 ,Kingfisher Blinds & Curtains,282,St Davids House,Furniture & Equipment Purchase,4000
Redditch Borough Council,24/04/2019,316141,410470,"1,625.00 ",325.00 ,Kings Chambers,36071,Legal Services,Professional Fees,4350
Redditch Borough Council,24/04/2019,318217,1143466298,"1,331.48 ",266.30 ,Konica Minolta Business Solutions (Uk) Ltd,103477,Print Facilities,Furniture & Equipment Rental,4001
Redditch Borough Council,24/04/2019,318245,1143466276,"2,100.77 ",420.15 ,Konica Minolta Business Solutions (Uk) Ltd,103477,Print Facilities,Furniture & Equipment Rental,4001
Redditch Borough Council,16/04/2019,318853,00674189,756.00 ,151.20 ,Lester Aldridge Llp,64839,Corporate Staff Costs,Professional Fees,4350
Redditch Borough Council,10/04/2019,318647,63377,"3,470.00 ",694.00 ,Liftability Limited,272,Rbc Balance Sheet,Contract Payments,8131
Redditch Borough Council,10/04/2019,317054,SHI51512,0.00 ,115.32 ,Lloyd Worrall (Classic),5646,Crossgate Stocks,Stock Account (Cedar),1201
Redditch Borough Council,24/04/2019,318209,1010037,830.14 ,166.03 ,Locker Shop Uk Ltd,105439,St Davids House,Furniture & Equipment Purchase,4000
Redditch Borough Council,03/04/2019,317746,57316978,552.53 ,110.51 ,Magnet Contract Kitchen Solutions,66692,Hra Voids Repairs,Materials,4170
Redditch Borough Council,03/04/2019,317748,57302040,502.66 ,100.53 ,Magnet Contract Kitchen Solutions,66692,Hra Voids Repairs,Materials,4170
Redditch Borough Council,10/04/2019,317742,57329559,550.06 ,110.01 ,Magnet Contract Kitchen Solutions,66692,Hra Voids Repairs,Materials,4170
Redditch Borough Council,10/04/2019,317747,57322361,570.03 ,114.01 ,Magnet Contract Kitchen Solutions,66692,Hra Voids Repairs,Materials,4170
Redditch Borough Council,03/04/2019,317987,26THMARCH2019,"3,395.75 ",679.15 ,Mario Productions Ltd,60260,Theatre Management,Professional Fees,4350
Redditch Borough Council,03/04/2019,318233,IN28358,384.54 ,76.90 ,Matrix Scm Ltd,5367,Business Centres - Greenlands,Agency Staff,3020
Redditch Borough Council,03/04/2019,318233,IN28358,384.45 ,76.91 ,Matrix Scm Ltd,5367,Community Parks & Open Spaces,Agency Staff,3020
Redditch Borough Council,03/04/2019,318233,IN28358,"2,574.33 ",514.88 ,Matrix Scm Ltd,5367,Housing Locality Service,Agency Staff,3020
Redditch Borough Council,03/04/2019,318233,IN28358,710.05 ,142.03 ,Matrix Scm Ltd,5367,Hra Equipment & Adaptations,Agency Staff,3020
Redditch Borough Council,03/04/2019,318233,IN28358,"1,045.20 ",209.04 ,Matrix Scm Ltd,5367,Hra Responsive Repairs,Agency Staff,3020
Redditch Borough Council,03/04/2019,318233,IN28358,"2,706.26 ",541.33 ,Matrix Scm Ltd,5367,Hra Voids Repairs,Agency Staff,3020
Redditch Borough Council,03/04/2019,318233,IN28358,"5,158.93 ","1,031.80 ",Matrix Scm Ltd,5367,Hsg Options,Agency Staff,3020
Redditch Borough Council,03/04/2019,318233,IN28358,814.82 ,162.94 ,Matrix Scm Ltd,5367,Payments,Agency Staff,3020
Redditch Borough Council,03/04/2019,318233,IN28358,"2,544.38 ",508.88 ,Matrix Scm Ltd,5367,Planned,Agency Staff,3020
Redditch Borough Council,03/04/2019,318233,IN28358,"2,851.49 ",570.31 ,Matrix Scm Ltd,5367,St Davids House,Agency Staff,3020
Redditch Borough Council,03/04/2019,318233,IN28358,72.35 ,14.47 ,Matrix Scm Ltd,5367,St Davids Hse Luncheon Club,Agency Staff,3020
Redditch Borough Council,03/04/2019,318233,IN28358,368.47 ,73.71 ,Matrix Scm Ltd,5367,Welfare Support,Agency Staff,3020
Redditch Borough Council,10/04/2019,318533,IN28464,411.06 ,82.20 ,Matrix Scm Ltd,5367,Business Centres - Greenlands,Agency Staff,3020
Redditch Borough Council,10/04/2019,318533,IN28464,"2,283.93 ",456.81 ,Matrix Scm Ltd,5367,Housing Locality Service,Agency Staff,3020
Redditch Borough Council,10/04/2019,318533,IN28464,801.20 ,160.26 ,Matrix Scm Ltd,5367,Hra Equipment & Adaptations,Agency Staff,3020
Redditch Borough Council,10/04/2019,318533,IN28464,"6,862.93 ","1,372.69 ",Matrix Scm Ltd,5367,Hra Responsive Repairs,Agency Staff,3020
Redditch Borough Council,10/04/2019,318533,IN28464,"1,215.86 ",243.21 ,Matrix Scm Ltd,5367,Hra Voids Repairs,Agency Staff,3020
Redditch Borough Council,10/04/2019,318533,IN28464,"3,015.39 ",603.06 ,Matrix Scm Ltd,5367,Hsg Options,Agency Staff,3020
Redditch Borough Council,10/04/2019,318533,IN28464,730.24 ,146.04 ,Matrix Scm Ltd,5367,Indoor Sports & Rec Facilities,Agency Staff,3020
Redditch Borough Council,10/04/2019,318533,IN28464,401.19 ,80.23 ,Matrix Scm Ltd,5367,Payments,Agency Staff,3020
Redditch Borough Council,10/04/2019,318533,IN28464,"1,730.37 ",346.08 ,Matrix Scm Ltd,5367,Planned,Agency Staff,3020
Redditch Borough Council,10/04/2019,318533,IN28464,380.65 ,76.15 ,Matrix Scm Ltd,5367,Welfare Support,Agency Staff,3020
Redditch Borough Council,24/04/2019,318904,IN28565,411.06 ,82.20 ,Matrix Scm Ltd,5367,Business Centres - Greenlands,Agency Staff,3020
Redditch Borough Council,24/04/2019,318904,IN28565,768.90 ,153.82 ,Matrix Scm Ltd,5367,Community Parks & Open Spaces,Agency Staff,3020
Redditch Borough Council,24/04/2019,318904,IN28565,"3,495.36 ",699.10 ,Matrix Scm Ltd,5367,Housing Locality Service,Agency Staff,3020
Redditch Borough Council,24/04/2019,318904,IN28565,710.05 ,142.03 ,Matrix Scm Ltd,5367,Hra Equipment & Adaptations,Agency Staff,3020
Redditch Borough Council,24/04/2019,318904,IN28565,"11,572.89 ","2,314.75 ",Matrix Scm Ltd,5367,Hra Responsive Repairs,Agency Staff,3020
Redditch Borough Council,24/04/2019,318904,IN28565,"1,722.60 ",344.57 ,Matrix Scm Ltd,5367,Hra Voids Repairs,Agency Staff,3020
Redditch Borough Council,24/04/2019,318904,IN28565,"2,633.14 ",526.61 ,Matrix Scm Ltd,5367,Hsg Options,Agency Staff,3020
Redditch Borough Council,24/04/2019,318904,IN28565,365.12 ,73.02 ,Matrix Scm Ltd,5367,Indoor Sports & Rec Facilities,Agency Staff,3020
Redditch Borough Council,24/04/2019,318904,IN28565,398.08 ,79.61 ,Matrix Scm Ltd,5367,Payments,Agency Staff,3020
Redditch Borough Council,24/04/2019,318904,IN28565,613.05 ,122.61 ,Matrix Scm Ltd,5367,Planned,Agency Staff,3020
Redditch Borough Council,24/04/2019,319358,IN28665,413.54 ,82.72 ,Matrix Scm Ltd,5367,Business Centres - Greenlands,Agency Staff,3020
Redditch Borough Council,24/04/2019,319358,IN28665,387.41 ,77.50 ,Matrix Scm Ltd,5367,Community Parks & Open Spaces,Agency Staff,3020
Redditch Borough Council,24/04/2019,319358,IN28665,"4,351.02 ",870.26 ,Matrix Scm Ltd,5367,Housing Locality Service,Agency Staff,3020
Redditch Borough Council,24/04/2019,319358,IN28665,575.72 ,115.16 ,Matrix Scm Ltd,5367,Hra Equipment & Adaptations,Agency Staff,3020
Redditch Borough Council,24/04/2019,319358,IN28665,"9,024.36 ","1,805.00 ",Matrix Scm Ltd,5367,Hra Responsive Repairs,Agency Staff,3020
Redditch Borough Council,24/04/2019,319358,IN28665,"1,870.73 ",374.20 ,Matrix Scm Ltd,5367,Hra Voids Repairs,Agency Staff,3020
Redditch Borough Council,24/04/2019,319358,IN28665,"2,974.88 ",595.00 ,Matrix Scm Ltd,5367,Hsg Options,Agency Staff,3020
Redditch Borough Council,24/04/2019,319358,IN28665,398.08 ,79.61 ,Matrix Scm Ltd,5367,Payments,Agency Staff,3020
Redditch Borough Council,24/04/2019,319358,IN28665,"3,366.02 ",673.22 ,Matrix Scm Ltd,5367,Planned,Agency Staff,3020
Redditch Borough Council,24/04/2019,319358,IN28665,753.45 ,150.69 ,Matrix Scm Ltd,5367,Property Services,Agency Staff,3020
Redditch Borough Council,24/04/2019,319263,1412536/0,604.75 ,120.96 ,Mcd Kidderminster,255,Hra Responsive Repairs,Furniture & Equipment Purchase,4000
Redditch Borough Council,03/04/2019,317519,119473,"2,423.75 ",484.75 ,Mercia Waste Management,610,Hra Voids Repairs,Refuse Collection/Waste Dispos,3602
Redditch Borough Council,03/04/2019,317555,119428,581.70 ,116.34 ,Mercia Waste Management,610,Hra Voids Repairs,Refuse Collection/Waste Dispos,3602
Redditch Borough Council,10/04/2019,318457,8A063423/03/201,"60,685.00 ",0.00 ,Met Life,103348,Rbc Balance Sheet,Holding/Suspense/Contra Accs,9008
Redditch Borough Council,26/04/2019,319628,Redacted- Personal Protection Data,"190,000.00 ",0.00 ,Mfg Solicitors,7017,Rbc Balance Sheet,Building - Purchase,8102
Redditch Borough Council,16/04/2019,317641,151395,"4,950.00 ",989.97 ,Morgard Court Ltd  T/A Gardner'S,65889,Household Waste Collection,Advertising Publicity & Prom,4700
Redditch Borough Council,03/04/2019,318286,402210-1,0.00 ,115.00 ,Morris Mica Hardware,595,Crossgate Stocks,Stock Account (Cedar),1201
Redditch Borough Council,10/04/2019,318210,667,874.00 ,0.00 ,Redacted- Personal Data Protection,54700,Crematoria,Professional Fees,4350
Redditch Borough Council,11/04/2019,318921,MARCH 19,"15,934.53 ",0.00 ,National Westminster Bank Plc,6015,Rbc Balance Sheet,Holding/Suspense/Contra Accs,9008
Redditch Borough Council,03/04/2019,318229,82961270,"5,105.43 ",0.00 ,Neopost Finance Limited,5419,Central Post,Postage,4400
Redditch Borough Council,24/04/2019,319246,82961271,"5,500.00 ",0.00 ,Neopost Finance Limited,5419,Central Post,Postage,4400
Redditch Borough Council,16/04/2019,317801,3045,"4,800.00 ",960.00 ,Neos It Training,7075,Corporate Staff Costs,Training,3043
Redditch Borough Council,24/04/2019,317547,23719,"2,424.50 ",484.90 ,Nibra Signs Ltd,103846,Building Control,Materials,4170
Redditch Borough Council,03/04/2019,315094,36630,"1,553.83 ",310.77 ,Niyaa People Limited,7093,Planned,Agency Staff,3020
Redditch Borough Council,03/04/2019,315161,36641,"1,639.20 ",327.84 ,Niyaa People Limited,7093,Planned,Agency Staff,3020
Redditch Borough Council,03/04/2019,318204,36135,"1,895.33 ",379.07 ,Niyaa People Limited,7093,Planned,Agency Staff,3020
Redditch Borough Council,16/04/2019,308001,34090,"1,058.65 ",211.73 ,Niyaa People Limited,7093,Planned,Agency Staff,3020
Redditch Borough Council,24/04/2019,319041,100262,973.28 ,194.66 ,Niyaa People Limited,7093,Planned,Agency Staff,3020
Redditch Borough Council,24/04/2019,316533,SI/04413521,"3,699.60 ",739.92 ,Nomix Enviro Limited,5051,Crossgate Stocks,Stock Account (Cedar),1201
Redditch Borough Council,03/04/2019,318323,91420411,"2,745.00 ",549.00 ,Northgate Public Services (Uk) Limited,577,Welfare Support,Agency Staff,3020
Redditch Borough Council,03/04/2019,318324,91420412,"5,337.50 ","1,067.50 ",Northgate Public Services (Uk) Limited,577,Welfare Support,Agency Staff,3020
Redditch Borough Council,24/04/2019,319243,52942,"4,394.88 ",878.98 ,Office Update Ltd,67403,Civic Suite,Furniture & Equipment Purchase,4000
Redditch Borough Council,10/04/2019,318635,2ND INST 18/19,"3,000.00 ",0.00 ,Onside Independent Advocacy,7162,Grants To Vol Sector,Grants & Subscriptions,4650
Redditch Borough Council,10/04/2019,318483,0071021196,"1,022.00 ",192.14 ,Optima Health,59907,Corporate Staff Costs,Employee Expenses,3011
Redditch Borough Council,03/04/2019,317644,OE4812,736.56 ,147.31 ,Orton Electrical Services Limited,64970,Hra Responsive Repairs,Building Maintenance,3100
Redditch Borough Council,03/04/2019,317645,OE4813,"1,112.85 ",222.57 ,Orton Electrical Services Limited,64970,Hra Responsive Repairs,Building Maintenance,3100
Redditch Borough Council,03/04/2019,317646,OE4814,916.42 ,183.28 ,Orton Electrical Services Limited,64970,Hra Responsive Repairs,Building Maintenance,3100
Redditch Borough Council,03/04/2019,317647,OE4815,940.62 ,188.12 ,Orton Electrical Services Limited,64970,Hra Responsive Repairs,Building Maintenance,3100
Redditch Borough Council,03/04/2019,317648,OE4816,774.18 ,154.84 ,Orton Electrical Services Limited,64970,Hra Responsive Repairs,Building Maintenance,3100
Redditch Borough Council,03/04/2019,317653,OE4817,"4,269.12 ",853.82 ,Orton Electrical Services Limited,64970,Hra Responsive Repairs,Building Maintenance,3100
Redditch Borough Council,03/04/2019,317654,OE4818,"3,930.70 ",786.14 ,Orton Electrical Services Limited,64970,Hra Responsive Repairs,Building Maintenance,3100
Redditch Borough Council,03/04/2019,317655,OE4819,"1,701.83 ",340.37 ,Orton Electrical Services Limited,64970,Hra Responsive Repairs,Building Maintenance,3100
Redditch Borough Council,03/04/2019,317656,OE4820,"2,430.08 ",486.02 ,Orton Electrical Services Limited,64970,Hra Responsive Repairs,Building Maintenance,3100
Redditch Borough Council,03/04/2019,317693,OE4821/EJ16429,"7,553.62 ","1,510.72 ",Orton Electrical Services Limited,64970,Hra S/Charge Eligible Works,Building Maintenance,3100
Redditch Borough Council,03/04/2019,317694,OE4828,"2,661.84 ",532.37 ,Orton Electrical Services Limited,64970,Hra Responsive Repairs,Building Maintenance,3100
Redditch Borough Council,03/04/2019,317695,OE4823,"2,220.46 ",444.09 ,Orton Electrical Services Limited,64970,Hra Responsive Repairs,Building Maintenance,3100
Redditch Borough Council,03/04/2019,317696,OE4824,"1,914.61 ",382.92 ,Orton Electrical Services Limited,64970,Hra Responsive Repairs,Building Maintenance,3100
Redditch Borough Council,03/04/2019,317697,OE4825,"2,452.03 ",490.41 ,Orton Electrical Services Limited,64970,Hra Responsive Repairs,Building Maintenance,3100
Redditch Borough Council,03/04/2019,317698,OE4826,"2,232.70 ",446.54 ,Orton Electrical Services Limited,64970,Hra Responsive Repairs,Building Maintenance,3100
Redditch Borough Council,03/04/2019,317699,OE4827,"1,566.46 ",313.29 ,Orton Electrical Services Limited,64970,Hra Responsive Repairs,Building Maintenance,3100
Redditch Borough Council,03/04/2019,317700,OE4829,"3,522.26 ",704.45 ,Orton Electrical Services Limited,64970,Hra Responsive Repairs,Building Maintenance,3100
Redditch Borough Council,03/04/2019,317701,OE4831,"2,334.80 ",466.96 ,Orton Electrical Services Limited,64970,Hra Responsive Repairs,Building Maintenance,3100
Redditch Borough Council,03/04/2019,317702,OE4832,909.92 ,181.98 ,Orton Electrical Services Limited,64970,Hra Responsive Repairs,Building Maintenance,3100
Redditch Borough Council,03/04/2019,317703,OE4833,"1,844.36 ",368.87 ,Orton Electrical Services Limited,64970,Hra Responsive Repairs,Building Maintenance,3100
Redditch Borough Council,03/04/2019,317704,OE4834,618.82 ,123.76 ,Orton Electrical Services Limited,64970,Hra Responsive Repairs,Building Maintenance,3100
Redditch Borough Council,10/04/2019,317793,OE4837,"1,199.21 ",239.84 ,Orton Electrical Services Limited,64970,Hra Responsive Repairs,Building Maintenance,3100
Redditch Borough Council,10/04/2019,318503,OE4854,"1,809.07 ",361.81 ,Orton Electrical Services Limited,64970,Hra Responsive Repairs,Building Maintenance,3100
Redditch Borough Council,10/04/2019,318504,OE4850,"1,660.54 ",332.11 ,Orton Electrical Services Limited,64970,Hra Responsive Repairs,Building Maintenance,3100
Redditch Borough Council,10/04/2019,318505,OE4845,"5,867.84 ","1,173.57 ",Orton Electrical Services Limited,64970,Hra Responsive Repairs,Building Maintenance,3100
Redditch Borough Council,10/04/2019,318506,OE4846,"2,709.52 ",541.90 ,Orton Electrical Services Limited,64970,Hra Responsive Repairs,Building Maintenance,3100
Redditch Borough Council,10/04/2019,318507,OE4847,"3,244.57 ",648.91 ,Orton Electrical Services Limited,64970,Hra Responsive Repairs,Building Maintenance,3100
Redditch Borough Council,10/04/2019,318508,OE4848,"1,991.74 ",398.35 ,Orton Electrical Services Limited,64970,Hra Responsive Repairs,Building Maintenance,3100
Redditch Borough Council,10/04/2019,318509,OE4849,"2,176.49 ",435.30 ,Orton Electrical Services Limited,64970,Hra Responsive Repairs,Building Maintenance,3100
Redditch Borough Council,10/04/2019,318510,OE4851,"1,254.36 ",250.87 ,Orton Electrical Services Limited,64970,Hra Responsive Repairs,Building Maintenance,3100
Redditch Borough Council,10/04/2019,318511,OE4852,"1,407.19 ",281.44 ,Orton Electrical Services Limited,64970,Hra Responsive Repairs,Building Maintenance,3100
Redditch Borough Council,10/04/2019,318512,OE4853,"2,651.62 ",530.32 ,Orton Electrical Services Limited,64970,Hra Responsive Repairs,Building Maintenance,3100
Redditch Borough Council,10/04/2019,318513,OE4855,"3,615.51 ",723.10 ,Orton Electrical Services Limited,64970,Hra Responsive Repairs,Building Maintenance,3100
Redditch Borough Council,03/04/2019,318180,QCV WEEK 13 19,604.00 ,0.00 ,Paypoint Plc (Qcv),7105,Rent-Rebates,Other Fees,4360
Redditch Borough Council,03/04/2019,318224,3111C,500.00 ,100.00 ,People First,105443,Community Development,Furniture & Equipment Purchase,4000
Redditch Borough Council,24/04/2019,318489,252P308256,534.65 ,106.93 ,Pertemps Recruitment Partnership Ltd,557,Hra Voids Repairs,Agency Staff,3020
Redditch Borough Council,03/04/2019,318037,511,500.00 ,0.00 ,Redacted- Personal Data Protection,556,Allotments,Grounds Maintenance,3200
Redditch Borough Council,10/04/2019,318561,104,630.00 ,0.00 ,Redacted- Personal Data Protection,5257,Indoor Sports & Rec Facilities,Agency Staff,3020
Redditch Borough Council,10/04/2019,318481,03/19,500.00 ,0.00 ,Redacted- Personal Data Protection,7036,Indoor Sports & Rec Facilities,Agency Staff,3020
Redditch Borough Council,10/04/2019,317341,152673,795.00 ,159.00 ,Possum Limited,2080,Lifeline - Support,Furniture & Equipment Purchase,4000
Redditch Borough Council,03/04/2019,318211,SIN1006455,"6,748.40 ","1,349.68 ",Ppl Prs Ltd,2333,Theatre Management,Other Fees,4360
Redditch Borough Council,03/04/2019,318273,14638,544.25 ,108.85 ,Practical Care Products Ltd,391,Hra Equipment & Adaptations,Materials,4170
Redditch Borough Council,03/04/2019,318274,14639,544.25 ,108.85 ,Practical Care Products Ltd,391,Hra Equipment & Adaptations,Materials,4170
Redditch Borough Council,16/04/2019,318766,14654,608.25 ,121.65 ,Practical Care Products Ltd,391,Hra Equipment & Adaptations,Materials,4170
Redditch Borough Council,16/04/2019,318808,14667,595.00 ,119.00 ,Practical Care Products Ltd,391,Hra Voids Repairs,Materials,4170
Redditch Borough Council,16/04/2019,318809,14668,570.00 ,114.00 ,Practical Care Products Ltd,391,Hra Voids Repairs,Materials,4170
Redditch Borough Council,24/04/2019,319172,14681,544.25 ,108.85 ,Practical Care Products Ltd,391,Hra Equipment & Adaptations,Materials,4170
Redditch Borough Council,10/04/2019,317498,13531,562.95 ,112.59 ,R & J Machinery,1532,Hra Voids Repairs,Furniture & Equipment R&M,4002
Redditch Borough Council,03/04/2019,317731,1338,"4,500.00 ",900.00 ,Redacted- Personal Data Protection,61783,Community Parks & Open Spaces,Grounds Maintenance,3200
Redditch Borough Council,03/04/2019,317732,1339,"3,120.00 ",624.00 ,Redacted- Personal Data Protection,61783,Community Parks & Open Spaces,Grounds Maintenance,3200
Redditch Borough Council,16/04/2019,318852,19-28,709.82 ,0.00 ,R D Rogers Butchers,373,St Davids Hse Luncheon Club,Catering Provisions,4200
Redditch Borough Council,16/04/2019,319018,WW260119,896.37 ,179.27 ,Ravenhill Promotions,62356,Theatre Management,Professional Fees,4350
Redditch Borough Council,03/04/2019,318221,1065479,"1,525.30 ",305.06 ,Redditch Skip Hire Ltd,984,Redditch Place Teams General,Refuse Collection/Waste Dispos,3602
Redditch Borough Council,16/04/2019,318178,1065480,588.85 ,117.77 ,Redditch Skip Hire Ltd,984,Redditch Place Teams General,Refuse Collection/Waste Dispos,3602
Redditch Borough Council,16/04/2019,318306,1065540,"1,913.10 ",382.62 ,Redditch Skip Hire Ltd,984,Hra Responsive Repairs,Refuse Collection/Waste Dispos,3602
Redditch Borough Council,10/04/2019,318352,218,"3,412.50 ",682.50 ,Resources Consultancy Ltd,60829,Finance,Professional Fees,4350
Redditch Borough Council,10/04/2019,318287,IN006861,"1,150.00 ",230.00 ,Rhodar Limited,6727,Rbc Balance Sheet,Contract Payments,8131
Redditch Borough Council,16/04/2019,316692,1152,516.00 ,0.00 ,Rsa Academy Arrow Vale,2678,Sports Dev & Com'Ty Recreation,Agency Staff,3020
Redditch Borough Council,11/04/2019,318924,700000051,"307,419.00 ","61,483.80 ",Rubicon Leisure Ltd,104574,Rubicon Management Fee,Contracted Out Services,5018
Redditch Borough Council,16/04/2019,317465,700000035,"9,418.79 ","1,883.76 ",Rubicon Leisure Ltd,104574,Cultural Services Manager,Agency Staff,3020
Redditch Borough Council,16/04/2019,317465,700000035,402.00 ,80.40 ,Rubicon Leisure Ltd,104574,Golf Courses,Other Fees,4360
Redditch Borough Council,16/04/2019,317465,700000035,"3,943.90 ",788.78 ,Rubicon Leisure Ltd,104574,Human Resources,Agency Staff,3020
Redditch Borough Council,16/04/2019,317465,700000035,"987,870.07 ","97,032.50 ",Rubicon Leisure Ltd,104574,Rbc Balance Sheet,Debtors - Rubicon Leisure Ltd,1365
Redditch Borough Council,16/04/2019,317465,700000035,-193.00 ,-38.60 ,Rubicon Leisure Ltd,104574,Theatre Management,Other Fees,4360
Redditch Borough Council,24/04/2019,319440,MAR19,540.00 ,0.00 ,Redacted- Personal Data Protection,5301,Indoor Sports & Rec Facilities,Agency Staff,3020
Redditch Borough Council,16/04/2019,317634,U965853,"1,750.00 ",350.00 ,Savills (Uk) Limited,104811,Commercialism,Other Fees,4360
Redditch Borough Council,24/04/2019,316532,91557077,"3,850.00 ",770.00 ,Serco Limited,35621,Corporate Staff Costs,Training,3043
Redditch Borough Council,03/04/2019,317755,INV175627,922.77 ,184.56 ,Servicom (High Tech) Ltd,338,Concessionary Travel,Furniture & Equipment Purchase,4000
Redditch Borough Council,03/04/2019,318127,0000746927,"1,275.00 ",255.00 ,Socotec Limited,102028,Crematoria,Professional Fees,4350
Redditch Borough Council,10/04/2019,318242,3540492,"2,555.00 ",0.00 ,Sodexo Motivation Solutions Uk Ltd,103152,Rbc Balance Sheet,Payroll Deductions,1488
Redditch Borough Council,10/04/2019,318262,SI190002240,"1,241.00 ",248.20 ,Solon Security,4881,Safer & Stronger Communities,Other Fees,4360
Redditch Borough Council,03/04/2019,318009,54973,"2,886.50 ",577.30 ,Sos Group Services Ltd,5054,Hra Responsive Repairs,Grounds Maintenance,3200
Redditch Borough Council,16/04/2019,318762,71417,"4,292.50 ",858.50 ,Sse Audio Group,2695,Theatre Management,Furniture & Equipment Purchase,4000
Redditch Borough Council,16/04/2019,318763,71416,"5,945.75 ","1,189.15 ",Sse Audio Group,2695,Theatre Management,Furniture & Equipment Purchase,4000
Redditch Borough Council,16/04/2019,318764,71415,"5,499.50 ","1,099.90 ",Sse Audio Group,2695,Theatre Management,Furniture & Equipment Purchase,4000
Redditch Borough Council,24/04/2019,318830,M5296,745.00 ,149.00 ,Sub Surface Midlands Ltd,104986,Rbc Balance Sheet,Building - Purchase,8102
Redditch Borough Council,24/04/2019,318831,M5305,745.00 ,149.00 ,Sub Surface Midlands Ltd,104986,Rbc Balance Sheet,Building - Purchase,8102
Redditch Borough Council,03/04/2019,317408,SINV822999,596.63 ,119.33 ,Swallow,7323,Theatre Management,Catering Provisions,4200
Redditch Borough Council,10/04/2019,318192,SINV824093,"1,645.14 ",329.05 ,Swallow,7323,Theatre Management,Catering Provisions,4200
Redditch Borough Council,16/04/2019,319019,SWINV016238,825.30 ,165.06 ,Swim England Awards (Asa),91,Indoor Sports & Rec Facilities,Furniture & Equipment Purchase,4000
Redditch Borough Council,24/04/2019,319439,68098805,"1,500.00 ",0.00 ,Tameside Metropolitan Borough Council,513,Welfare Support,Other Fees,4360
Redditch Borough Council,16/04/2019,316154,SI-785,750.00 ,0.00 ,The Childrens Sleep Charity,63105,Community Development,Stationery & General Office,4304
Redditch Borough Council,10/04/2019,318342,3386,675.00 ,135.00 ,The Glasshouse (B G Elvins Limited),495,Hra Responsive Repairs,Materials,4170
Redditch Borough Council,10/04/2019,318343,3387,718.62 ,143.72 ,The Glasshouse (B G Elvins Limited),495,Hra Responsive Repairs,Materials,4170
Redditch Borough Council,10/04/2019,318584,07/03/19,"2,282.00 ",0.00 ,The Hub (Bromsgrove Youth & Community Hub),103873,Bromsgrove Csp,Other Fees,4360
Redditch Borough Council,10/04/2019,318634,2ND INS 18/19,"5,000.00 ",0.00 ,Touchstones Support Cic,6165,Grants To Vol Sector,Grants & Subscriptions,4650
Redditch Borough Council,10/04/2019,317281,20645,598.82 ,119.76 ,Trilo Uk Ltd T/A The Grass Group,104398,Grounds Maint - Parks,R&M Of Vehicles,3700
Redditch Borough Council,03/04/2019,317794,22825,575.00 ,115.00 ,Unique Systems (Av) Ltd,63981,Indoor Sports & Rec Facilities,Furniture & Equipment R&M,4002
Redditch Borough Council,24/04/2019,319343,APR 19 DEDS,"1,173.75 ",0.00 ,Unison West Midlands Regional Centre,1510,Rbc Balance Sheet,Payroll Deductions,1488
Redditch Borough Council,03/04/2019,318278,21948,"5,820.00 ","1,164.00 ",Ventro Group,103300,Rbc Balance Sheet,Contract Payments,8131
Redditch Borough Council,03/04/2019,318279,21932,"7,820.00 ","1,564.00 ",Ventro Group,103300,Rbc Balance Sheet,Contract Payments,8131
Redditch Borough Council,24/04/2019,318345,SI6039,722.00 ,144.40 ,Vestis Contract Flooring Ltd,103935,Business Centres - Hemming Roa,Building Maintenance,3100
Redditch Borough Council,24/04/2019,319355,Redacted- Personal Protection Data,700.00 ,0.00 ,Vizor,4851,Homelessness Administration,Grants & Subscriptions,4650
Redditch Borough Council,24/04/2019,319429,UK10/042019/757,"3,401.17 ",680.23 ,Vodafone,60359,Rbc It Costs,Ict,4500
Redditch Borough Council,03/04/2019,316229,165111211,"8,050.34 ",0.00 ,Water Plus (Severn Trent Water),2411,Other Special Services,Water Charges,3450
Redditch Borough Council,10/04/2019,315873,01841690,903.74 ,0.00 ,Weightmans,1558,Vat Control Account,Vat Input Tax Adjustments,2994
Redditch Borough Council,10/04/2019,316743,643916,550.00 ,110.00 ,Redacted- Personal Data Protection,104510,Legal Services,Professional Fees,4350
Redditch Borough Council,03/04/2019,318138,9759,"6,250.00 ","1,250.00 ",Wolverhampton Tree Service (Do Not Use 6933),35245,Community Parks & Open Spaces,Grounds Maintenance,3200
Redditch Borough Council,24/04/2019,319333,8040060280,"11,283.50 ",0.00 ,Worcester City Council,2238,Audit Services,Professional Fees,4350
Redditch Borough Council,16/04/2019,317657,104042,"83,657.09 ",0.00 ,Worcestershire County Council,195,Non - Distributable Costs,Employee Expenses,3011
Redditch Borough Council,24/04/2019,318479,IN00104801,756.00 ,151.20 ,Worcestershire County Council,195,Land Charges,Other Fees,4360
Redditch Borough Council,24/04/2019,319310,S019477,"14,072.84 ","2,814.57 ",Wychavon District Council,674,On-Street Parking,Other Local Authorities,5009
Redditch Borough Council,03/04/2019,318039,80029104,"4,000.00 ",800.00 ,Wyre Forest District Council,1922,Corporate Expenses,Other Fees,4360
Redditch Borough Council,03/04/2019,318218,80029251,"2,042.00 ",408.40 ,Wyre Forest District Council,1922,Community Parks & Open Spaces,Grounds Maintenance,3200
Redditch Borough Council,03/04/2019,318219,80029252,"4,029.00 ",805.80 ,Wyre Forest District Council,1922,Community Parks & Open Spaces,Grounds Maintenance,3200
Redditch Borough Council,03/04/2019,318220,80029253,"3,658.00 ",731.60 ,Wyre Forest District Council,1922,Community Parks & Open Spaces,Grounds Maintenance,3200
Redditch Borough Council,16/04/2019,318961,80029271,"3,800.00 ",760.00 ,Wyre Forest District Council,1922,Community Parks & Open Spaces,Grounds Maintenance,3200
Redditch Borough Council,24/04/2019,318252,80029208,"12,051.50 ","2,410.30 ",Wyre Forest District Council,1922,Business Centres - Greenlands,Other Local Authorities,5009
Redditch Borough Council,24/04/2019,318252,80029208,"1,565.75 ",313.15 ,Wyre Forest District Council,1922,Business Centres - Hemming Roa,Other Local Authorities,5009
Redditch Borough Council,24/04/2019,318252,80029208,"8,285.42 ","1,657.08 ",Wyre Forest District Council,1922,Business Centres - Rubicon,Other Local Authorities,5009
Redditch Borough Council,24/04/2019,318252,80029208,"2,095.82 ",419.16 ,Wyre Forest District Council,1922,Civil Emergency Planning,Other Local Authorities,5009
Redditch Borough Council,24/04/2019,318252,80029208,"37,443.46 ","7,488.70 ",Wyre Forest District Council,1922,Economic Development,Other Local Authorities,5009
Redditch Borough Council,24/04/2019,318252,80029208,"16,383.75 ","3,276.75 ",Wyre Forest District Council,1922,Land Drainage,Other Local Authorities,5009
Redditch Borough Council,24/04/2019,318854,29696,"1,043.75 ",0.00 ,Ymca,661,Community Centres,Other Fees,4360
,,,,"3,436,799.99 ","318,781.15 ",,,,,
